Cogmind - Beta 10 @@@ ROGUE MODE // 2020.09.18 @ 00:48:46 Player: Wyrd Darcnyzz Result: Destroyed by YI-UF0 with YI-UF0's Doublenader Performance ------------- Evolutions (0) 0 Regions Visited (4) 800 Robots Destroyed (26) 130 Value Destroyed (660) 660 Prototype IDs (25) 500 Alien Tech Used (0) 0 Bonus (314) 314 TOTAL SCORE: 2404 Bonus ------- Follower Combat Kills 14 Aligned with FarCom 300 Cogmind --------- Core Integrity 0/250 Matter 280/300 Energy 25/100 System Corruption 0% Temperature Cool (25) Movement Core (100) Ox1 Location -9/Mines Parts ------- > --- POWER (1) -------- (None) > --- PROPULSION (2) --- (None) > --- UTILITY (2) ------ Lightpack 2.0 > --- WEAPON (2) ------- (None) > --- INVENTORY (24) --- Light Treads Improved Heat Sink Large Storage Unit Large Battery (300) Light Armor Plating Peak State ------------ > --- POWER ------------ Light Nuclear Core > --- PROPULSION ------- Light Treads Light Treads > --- UTILITY ---------- Lightpack 2.0 > --- WEAPON ----------- Beam Cannon Beam Cannon > --- INVENTORY -------- Light Treads Improved Heat Sink Large Storage Unit Large Battery Light Armor Plating Beam Cannon Mining Laser Blade Trap [Rating: 28] Favorites ----------- Power Light Nuclear Core Engine Ion Engine Power Core Light Nuclear Core Propulsion Light Treads Treads Light Treads Utility Large Storage Unit Device Improved Heat Sink Storage Large Storage Unit Weapon Beam Cannon Energy Cannon Beam Cannon Ballistic Gun Assault Rifle Ballistic Cannon Improved Light Cannon Launcher Grenade Launcher Special Weapon Mining Laser Build | -11 -10 -10 -10 -9 ------- Run | Scr Mat Min Exi Min Slots Evolved . | . . . . . Power . | . . . . . Propulsion . | . . . . . Utility . | . . . . . Weapon . | . . . . . Parts Attached 29 | 6 17 2 1 3 Power 6 | 1 4 1 . . Engine 5 | 1 4 . . . Core 1 | . . 1 . . Reactor . | . . . . . Propulsion 5 | 2 3 . . . Treads 5 | 2 3 . . . Leg . | . . . . . Wheel . | . . . . . Hover . | . . . . . Flight . | . . . . . Utility 5 | 1 2 1 1 . Device 2 | . 1 1 . . Storage 3 | 1 1 . 1 . Processor . | . . . . . Hackware . | . . . . . Protection . | . . . . . Artifact . | . . . . . Weapon 13 | 2 8 . . 3 Energy Gun . | . . . . . Energy Cannon 5 | . 4 . . 1 Ballistic Gun 2 | 2 . . . . Ballistic Cannon 4 | . 4 . . . Launcher 1 | . . . . 1 Special Weapon 1 | . . . . 1 Impact Weapon . | . . . . . Slashing Weapon . | . . . . . Piercing Weapon . | . . . . . Special Melee Weapon . | . . . . . Unidentified Prototypes . | . . . . . Parts Lost 10 | . 2 . . 8 Power 2 | . 1 . . 1 Propulsion 2 | . . . . 2 Utility . | . . . . . Weapon 6 | . 1 . . 5 Highest Loss Streak 8 | . 2 . . 8 Average Slot Usage (%) 93 | . 93 100 93 83 Engine 5 | . 13 . . . Core 7 | . . 13 14 13 Treads 27 | . 28 28 28 27 Device 8 | . 8 14 7 . Storage 14 | . 14 14 14 14 Energy Cannon 23 | . 16 28 28 27 Ballistic Gun 1 | . 2 . . . Ballistic Cannon 3 | . 8 . . . Naked Turns . | . . . . . Heaviest Build 28 | 13 28 28 28 16 Greatest Support 40 | 40 40 40 40 40 Greatest Overweight (x) 2 | . . . . 2 Average Overweight (x) . | . . . . . Largest Inventory Capacity 24 | 6 10 10 24 24 Average Capacity 12 | 5 8 10 16 24 Most Carried 8 | 1 8 8 8 8 Average Carried 5 | . 3 6 6 7 Final Capacity 24 | 6 10 10 24 24 Final Carried 7 | . 5 6 7 5 Class Distribution -------------------- 74% | Mutant 25% | Hauler-Mutant Dominant Class ---------------- Mutant | -10/Materials Mutant | -10/Mines Mutant | -10/Exiles Hauler-Mutant | -9/Mines Resources | -11 -10 -10 -10 -9 ----------- Run | Scr Mat Min Exi Min Matter Collected 794 | 219 385 180 . 10 Remotely . | . . . . . Salvage Created 780 | . 494 286 . . Parts 58 | . 38 20 . . Haulers Intercepted 2 | . 2 . . . Recyclers Shooed 1 | . 1 . . . Parts Field Recycled . | . . . . . Retrieved Matter . | . . . . . Parts Self-Destructed . | . . . . . Prevented . | . . . . . Kills | -11 -10 -10 -10 -9 ------- Run | Scr Mat Min Exi Min Combat Hostiles Destroyed 21 | . 13 8 . . Guns 5 | . 5 . . . Cannons 16 | . 8 8 . . Classes Destroyed 7 | . 6 1 . . Hauler 2 | . 2 . . . Recycler 1 | . 1 . . . Operator 1 | . 1 . . . Watcher 1 | . 1 . . . Swarmer 9 | . 6 3 . . Grunt 11 | . 7 4 . . Sentry 1 | . . 1 . . Best Kill Streak 4 | . 4 4 . . Combat Bots Only 4 | . 3 4 . . Max Kills in Single Turn 2 | . 2 1 . . Gunslinging . | . . . . . Exploded . | . . . . . Melee . | . . . . . Uniques/NPCs Destroyed . | . . . . . Combat | -11 -10 -10 -10 -9 -------- Run | Scr Mat Min Exi Min Damage Taken 1289 | . 454 141 . 694 Core 263 | . 71 33 . 159 Absorbed by Shields . | . . . . . Core Remaining (%) 100 | 100 . . . . Volleys Fired 80 | . 51 14 . 15 Largest 2 | . 2 2 . 2 Hottest 120 | . 120 120 . 120 Shots Fired 148 | . 102 28 . 18 Gun 16 | . 16 . . . Cannon 130 | . 86 28 . 16 Launcher 1 | . . . . 1 Special 1 | . . . . 1 Kinetic 90 | . 90 . . . Thermal 57 | . 12 28 . 17 Explosive 1 | . . . . 1 Electromagnetic . | . . . . . Robot Hit Streak 13 | . 13 7 . 3 Robot Miss Streak 4 | . 3 4 . 3 Penetration Max . | . . . . . Secondary Targets . | . . . . . Shots Hit Robots 68 | . 45 16 . 7 Core Hits 32 | . 21 11 . . Critical Hits 1 | . . 1 . . Critical Kills 1 | . . 1 . . Critical Parts Destroyed . | . . . . . Melee Attacks . | . . . . . Impact . | . . . . . Slashing . | . . . . . Piercing . | . . . . . Sneak Attacks . | . . . . . Combat Hostiles . | . . . . . Follow-up Attacks . | . . . . . Damage Inflicted 1178 | . 716 315 . 147 Guns 151 | . 151 . . . Cannons 985 | . 565 315 . 105 Explosions 42 | . . . . 42 Melee . | . . . . . Ramming . | . . . . . Kinetic 611 | . 611 . . . Thermal 525 | . 105 315 . 105 Explosive 42 | . . . . 42 Electromagnetic . | . . . . . Impact . | . . . . . Slashing . | . . . . . Piercing . | . . . . . Highest Corruption . | . . . . . Average Corruption . | . . . . . Corruption Purged . | . . . . . Overload Shots . | . . . . . Overflow Damage 54 | . 44 . . 10 Projectiles 16 | . 8 . . 8 Explosions 38 | . 36 . . 2 Melee . | . . . . . Knockbacks 6 | . 6 . . . Impact . | . . . . . Kinetic 6 | . 6 . . . Secondary . | . . . . . Self-Inflicted Damage 263 | . 244 . . 19 Shots 4 | . 3 . . 1 Rammed . | . . . . . Targets Rammed . | . . . . . Kicked . | . . . . . Crushed . | . . . . . Highest Temperature 225 | . 225 105 . 182 Average Temperature 62 | . 67 36 . 76 Received Heat Transfer 141 | . 99 42 . . Siege Activations . | . . . . . Robots Corrupted . | . . . . . Combat Hostiles . | . . . . . Parts Fried . | . . . . . Impact Corruptions . | . . . . . Robots Melted . | . . . . . Combat Hostiles . | . . . . . Parts Melted 2 | . 1 1 . . Heat Transferred 1110 | . 222 666 . 222 Parts Sabotaged . | . . . . . Parts Stolen . | . . . . . Parts Stripped . | . . . . . Power Chain Reactions . | . . . . . Missiles Intercepted . | . . . . . Alert | -11 -10 -10 -10 -9 ------- Run | Scr Mat Min Exi Min Peak Influence 243 | . 243 141 . 46 Initial 1 | . . 1 . . Average 60 | . 97 42 . 18 Maximum Alert Level 1 | . 1 . . . Low Security (%) 95 | 100 90 100 . 100 Level 1 4 | . 9 . . . Level 2 . | . . . . . Level 3 . | . . . . . Level 4 . | . . . . . Level 5 . | . . . . . High Security . | . . . . . Max Security . | . . . . . Squads Dispatched 2 | . 2 . . . Investigation 1 | . 1 . . . Extermination . | . . . . . Reinforcement 1 | . 1 . . . Assault . | . . . . . Garrison . | . . . . . Intercept . | . . . . . Construction Impeded . | . . . . . Haulers Reinforced . | . . . . . Stealth | -11 -10 -10 -10 -9 --------- Run | Scr Mat Min Exi Min Distress Signals 1 | . 1 . . . Communications Jammed . | . . . . . Distress Signals . | . . . . . Times Spotted 37 | . 24 9 . 4 Peak Tracking Total 4 | . 4 4 . 2 Tactical Retreats 3 | . 2 1 . . Traps | -11 -10 -10 -10 -9 ------- Run | Scr Mat Min Exi Min Traps Triggered 3 | . 3 . . . Indirectly . | . . . . . Trap Hack Attempts . | . . . . . Triggered . | . . . . . Disarmed . | . . . . . Reprogrammed . | . . . . . Reused . | . . . . . Traps Extracted . | . . . . . Installed . | . . . . . Triggered . | . . . . . Machines | -11 -10 -10 -10 -9 ---------- Run | Scr Mat Min Exi Min Machines Disabled 7 | . 5 2 . . Max in Single Turn 4 | . 4 2 . . Machines Sabotaged . | . . . . . Garrisons Compromised . | . . . . . Overloaded Fab Kills . | . . . . . Fab Network Shutdowns . | . . . . . Hacking | -11 -10 -10 -10 -9 --------- Run | Scr Mat Min Exi Min Machines Accessed 13 | . 8 . 5 . Terminals 5 | . 5 . . . Fabricators . | . . . . . Repair Stations 1 | . 1 . . . Recycling Units 2 | . 2 . . . Scanalyzers . | . . . . . Garrison Access . | . . . . . Total Hacks 76 | . 26 . 50 . Successful 67 | . 17 . 50 . Failed 9 | . 9 . . . Catastrophic . | . . . . . Database Lockouts . | . . . . . Manual 1 | . . . 1 . Terminals 14 | . 14 . . . Fabricators . | . . . . . Repair Stations 2 | . 2 . . . Recycling Units 10 | . 10 . . . Scanalyzers . | . . . . . Garrison Access . | . . . . . Terminal Hacks 57 | . 7 . 50 . Record 50 | . 1 . 49 . Robot Analysis 2 | . 2 . . . Prototype ID Bank 1 | . 1 . . . Alert Level 1 | . 1 . . . Locate Traps 1 | . 1 . . . Reinforcement Status 1 | . 1 . . . EX-Prototype ID Bank 1 | . . . 1 . Fabricator Hacks . | . . . . . Repair Station Hacks 2 | . 2 . . . Scan Component 1 | . 1 . . . Repair 1 | . 1 . . . Recycling Unit Hacks 8 | . 8 . . . Recycle Component 5 | . 5 . . . Process 1 | . 1 . . . Report Inventory 2 | . 2 . . . Scanalyzer . | . . . . . Garrison Access Hacks . | . . . . . Unauthorized Hacks . | . . . . . Terminals . | . . . . . Fabricators . | . . . . . Repair Stations . | . . . . . Recycling Units . | . . . . . Scanalyzers . | . . . . . Garrison Access . | . . . . . Data Cores Recovered . | . . . . . Used . | . . . . . Hacking Detections 6 | . 6 . . . Full Trace Events 2 | . 2 . . . Feedback Events . | . . . . . Feedback Blocked . | . . . . . Robot Schematics Acquired . | . . . . . Robots Built . | . . . . . Matter . | . . . . . Time . | . . . . . Total Robot Build Rating . | . . . . . Part Schematics Acquired . | . . . . . Parts Built . | . . . . . Matter . | . . . . . Time . | . . . . . Total Part Build Rating . | . . . . . Parts Repaired 1 | . 1 . . . Time 26 | . 26 . . . Parts Recycled 5 | . 5 . . . Recycled Matter 110 | . 110 . . . Retrieved Matter . | . . . . . Retrieved Components . | . . . . . Parts Scanalyzed . | . . . . . Part Schematics Acquired . | . . . . . Parts Damaged . | . . . . . Bothacking | -11 -10 -10 -10 -9 ------------ Run | Scr Mat Min Exi Min Used RIF Installer . | . . . . . Robots Hacked . | . . . . . Non-combat . | . . . . . Combat . | . . . . . Robot Hacks Applied . | . . . . . Relay Couplers Released . | . . . . . Robots Rewired . | . . . . . Allies Hacked . | . . . . . Hacks Repelled . | . . . . . Allies | -11 -10 -10 -10 -9 -------- Run | Scr Mat Min Exi Min Total Allies 3 | . . . . 3 Largest Group 3 | . . . . 3 Highest-Rated Group 40 | . . . . 40 Highest-Rated Ally 16 | . . . . 16 Total Orders . | . . . . . Ally Attacks 13 | . . . . 13 Total Damage 130 | . . . . 130 Kills 2 | . . . . 2 Allies Corrupted . | . . . . . Allies Melted . | . . . . . Intel | -11 -10 -10 -10 -9 ------- Run | Scr Mat Min Exi Min Robot Analysis Total 2 | . 2 . . . Derelict Logs Recovered 5 | . . 3 . 2 Drone Launches . | . . . . . Drone Recoveries . | . . . . . Exploration | -11 -10 -10 -10 -9 ------------- Run | Scr Mat Min Exi Min Turns Passed 4650 | 91 1852 1220 541 946 Spaces Moved 2420 | 59 834 651 334 542 Core 12 | 11 . . . 1 Treads 2408 | 48 834 651 334 541 Legs . | . . . . . Wheels . | . . . . . Hover . | . . . . . Flight . | . . . . . Fastest Speed 50 | 50 160 160 160 150 Average Speed 159 | 139 160 160 160 159 Slowest Speed 160 | 160 160 160 160 160 Overloaded Moves . | . . . . . Propulsion Burnouts . | . . . . . Robots Hopped . | . . . . . Cave-ins Triggered . | . . . . . Exploration Rate (%) 69 | 4 88 93 63 99 Regions Visited 4 Branch Regions 3 Pre-discovered Areas 4 | . . 3 1 . Known Exits Taken . | . . . . . Unknown Exits Taken 4 | 1 1 1 1 . Scrap Searched 2 | . . 1 . 1 Spaces Dug . | . . . . . Terrain Destroyed 66 | . 54 12 . . Melee . | . . . . . Projectile 3 | . 3 . . . AOE 63 | . 51 12 . . Terrain Rammed . | . . . . . Walls Destroyed . | . . . . . Machines Disabled . | . . . . . Actions | -11 -10 -10 -10 -9 --------- Run | Scr Mat Min Exi Min Total 3060 | 65 1247 802 342 604 Wait 488 | . 318 129 . 41 Move 2416 | 58 833 650 333 542 Hop . | . . . . . Pick Up 33 | 1 20 4 6 2 Fast Attach 12 | 5 7 . . . Attach 8 | 1 3 . 1 3 Detach . | . . . . . Swap 9 | . 7 2 . . Drop 14 | . 8 3 2 1 Fire 80 | . 51 14 . 15 Melee . | . . . . . Ram . | . . . . . Kick . | . . . . . Crush . | . . . . . Escape Stasis . | . . . . . Rewire . | . . . . . Trap . | . . . . . Miscellaneous . | . . . . . Route ------- -11/Scrapyard -10/Materials (discovered 5 exits: *Mat x3 / [*Min x2]) -10/Mines (discovered 3 exits: *Mat x2 / *Exi) -10/Exiles (discovered 2 exits: [*Min x2]) -9/Mines (discovered 2 exits: *Mat x2) History --------- Turn | Location | Event 6 | -11/Scrapyard | Discovered new exit (range 14) 92 | -11/Scrapyard | Entered Materials 217 | -10/Materials | Discovered new exit (range 7) 317 | -10/Materials | Build established: Mutant 514 | -10/Materials | Discovered new exit (range 5) 1122 | -10/Materials | Discovered new exit (range 11) 1150 | -10/Materials | Repaired Ion Engine 1222 | -10/Materials | Discovered new exit (range 6) 1480 | -10/Materials | Discovered new exit (range 4) 1944 | -10/Materials | Entered Mines 1972 | -10/Mines | Met a Derelict bent on vengeance 2514 | -10/Mines | Learned location of Zion (-7) 2694 | -10/Mines | Received a Rocket Launcher from a helpful Derelict 2908 | -10/Mines | Discovered new exit (range 5) 2958 | -10/Mines | Learned location of Storage (-9) 3020 | -10/Mines | Identified exit to Materials 3033 | -10/Mines | Deemed a non-threat by the Exiles lab entrance 3033 | -10/Mines | Discovered new exit (range 5) 3164 | -10/Mines | Entered Exiles 3190 | -10/Exiles | Discovered new exit (range 15) 3244 | -10/Exiles | Met 8R-AWN 3267 | -10/Exiles | Met EX-HEX 3323 | -10/Exiles | Met EX-BIN 3340 | -10/Exiles | Aligned with FarCom system 3342 | -10/Exiles | Given EX-Vault access code 3401 | -10/Exiles | Opened EX-Vault 3465 | -10/Exiles | Found Lightpack 2.0 3469 | -10/Exiles | Exiles lab attacked by MAIN.C 3688 | -10/Exiles | Discovered new exit (range 10) 3705 | -10/Exiles | Left Exiles lab with Lightpack 2.0 3705 | -10/Exiles | Entered Mines 3742 | -9/Mines | Assisted by bots powering up and referring to "LRC-V3" 3754 | -9/Mines | Build established: Hauler-Mutant 3797 | -9/Mines | Discovered new exit (range 2) 3856 | -9/Mines | Identified exit to Materials 3960 | -9/Mines | Found a hidden stash of uninstalled traps 3983 | -9/Mines | Learned 2 Materials zone layouts 4146 | -9/Mines | YI-UF0 nonchalantly dropped a Grenade Launcher on the ground 4624 | -9/Mines | Core integrity fell below 50% 4648 | -9/Mines | Core integrity fell below 20% 4651 | -9/Mines | Destroyed by YI-UF0 with YI-UF0's Doublenader Last Messages --------------- 04631_ The unstable cave ceiling collapses. 04631_ U-05 Engineer lays Concrete. 04632_ The unstable cave ceiling collapses. 04632_ U-05 Engineer lays Concrete. 04634_ Destroyed Mining Laser. 04635_ Lgt. Treads destroyed. 04635_ U-05 Engineer destroyed. 04636_ The unstable cave ceiling collapses. 04641_ YI-UF0: "BLAM!" 04641_ K-01 Serf destroyed. 04641_ Grenade Launcher destroyed. 04641_ T-07 Excavator destroyed. 04642_ The unstable cave ceiling collapses. 04643_ Destroyed Shock Absorption System. 04644_ The unstable cave ceiling collapses. 04647_ Beam Cannon destroyed. 04647_ YI-UF0: "BLAM!" 04647_ T-07 Excavator destroyed. 04651_ The unstable cave ceiling collapses. 04651_ Mining Laser destroyed. Map ----- +----------------------------------------------------+ | ?????####???# < ######## #????????????????????? | | ????## ##??##### ##??????# #????????????????????? | | ????# ##??#### #???????# #######??????????????? | | ????# ##?# #???????# #??????????????? | | ????# ### ####???????####### #??????????????? | | ????# #????????????????# #??????????????? | | ????## """ ####??????????????### #??????????????? | | ?##### """ #????????????????## #??????????????? | | ?# """ #????????????????# ##?????????????? | | ## #????????????????# ##????????????? | | ###### ##????????????????## #????????????? | | ####????# #??????????????????## ##??####?????? | | ????????# #?????#####?????????# #### ##????? | | ????????# #???### ##???????## #????? | | ###?????# #??## #???????# ###????# | | # ##????# #?## ???###### ##?????## | | # ##???# ### #???# ###??????# | | #??## ## #???# ### ##????????# | | #??# #??# #####?#####?????????# | | #?## #### #???????????????????## | | ##?# #????????????????????# | | #??# ! = ##???????????????????# | | #### ! #######??????????????# | | ## ## # # ##?????????????# | | #?# # #?????????????# | | ### @ ########??????# | | ## = #??????# | | ### ### g = #??????# | | ??#### #?## ######## ####???? | | ?????### ##?## # # #????# #???? | | ???????## #### ## # ##????#### #???? | | ????????# ## #### [ ##????#!#???? | | ????????# #?? #????#%#???? | | ????????# #?? ????#%##### | | ????????## ### # #### ????# | | ?????????# ## ### #??? ????# | | ?#####???## ### #?# ##??????######### | | ## ##???# #?# ### ## #??????? #?????? | | # ##??# #### ### ##### #???????# #?????? | | #### #?##### ##?# ##???????# #?????? | | ## #?????# #?# #??####??# #?????? | | ##????## #?# #?## ##?# ###???? | | """ #????## ##?## #?# ### ####? | | """ #?#### ###???# ### ## | | """ #### ##?????# ### # | | ##?# ##??????# ## ## | | ####?## ##???????## ###### | | ##???## ##????????## ##????## | | ##??### #?????????## #???????# | | ##???# ##?????????## #????????# | +----------------------------------------------------+ Best States ------------- Heat Dissipation 39 Energy Generation 14 Energy Capacity 250 Matter Stores 300 Matter Capacity 300 Sight Range 16 Terrain Scan Density 10 Evasion (%) 40 Recoil Reduction 2 Item Schematics ----------------- None Robot Schematics ------------------ None Fabricated ------------ Nothing Alien Tech Used ----------------- None Achievements -------------- None Challenges ------------ None Game ------ Seed TerrainTractorPropulsion Manual? 0 Play Time 00:59:11 Cumulative 14.3 hours Start 2020.09.17 @ 23:31:06 End 2020.09.18 @ 00:48:46 Sessions 1 Manual Loads 0 Difficulty Rogue Special Mode None Game No. 16 Rogue 16 Adventurer 0 Explorer 0 Win Type - Total 0 Types 0/0/0/0/0/0/0/0/0 Lore% 19 Gallery% 9 Achievement% 12 Wizard Run 0 Options --------- ASCII 0 Keyboard 0 Movement Mouse Keybinds 0 Fullscreen 1 Font 32/Smallcaps Map View 76x50 Tactical HUD 1 Map Filters NONE Filters NONE Steam 1 RUN: 1d8242ce-5f99-425a-a32b-348e7b2b8893